fUSD/lending_fUSD_20240608
["ID","MTS","AMOUNT","RATE_DAILY","PERIOD"]
[328810991,1717819838054,-500.0,0.0002971,2]
[328810992,1717819838064,-153.16287005,0.00029712,2]
[328810993,1717819838076,-5000.0,0.00029719,2]
[328810994,1717819838086,-150.0,0.00029723,2]
[328810995,1717819838098,-1845.4069157,0.00029724,2]
[328810996,1717819838112,-1903.69970023,0.00029724,2]
[328810997,1717819838123,-1250.89338407,0.00029724,2]
[328810998,1717819838133,-154.75656005,0.00029731,2]
[328810999,1717819838143,-150.0,0.00029745,2]
[328811000,1717819838152,-266.50005588,0.00029752,2]
[328811001,1717819838196,-323.76,0.00029752,2]
[328811022,1717819840631,-4409.73994412,0.00029752,2]
[328811024,1717819840641,-633.7729566,0.00029754,2]
[328811026,1717819840651,-500.0,0.00029759,2]
[328811028,1717819840662,-150.0,0.00029765,2]
[328811030,1717819840676,-5000.0,0.00029769,2]
[328811032,1717819840687,-5000.0,0.0002978,2]
[328811034,1717819840698,-332.266,0.00029798,2]
[328811037,1717819840719,-977.661,0.00029798,2]
[328811039,1717819840918,-2405.0,0.00029798,2]
[328811040,1717819840928,-155.323,0.00029798,2]
[328811041,1717819840938,-808.0,0.00029798,2]
[328811042,1717819840947,-150.0,0.00029798,2]
[328811043,1717819840957,-446.0,0.00029798,2]
[328811044,1717819840967,-1304.0,0.00029798,2]
[328811045,1717819840976,-546.0,0.00029798,2]
[328811046,1717819840985,-1007.6,0.000298,2]
[328811047,1717819840995,-633.7729566,0.00029803,2]
[328811048,1717819841005,-258.58329675,0.00029806,2]
[328811049,1717819841014,-150.0,0.00029825,2]
[328811050,1717819841024,-150.0,0.00029839,2]
[328811051,1717819841033,-150.0,0.0002984,2]
[328811052,1717819841043,-633.7729566,0.00029851,2]
[328811053,1717819841053,-531.15011943,0.00029863,2]
[328811054,1717819841063,-500.0,0.00029863,2]
[328811055,1717819841074,-355.38535426,0.00029863,2]
[328811056,1717819841083,-1558.36,0.00029863,4]
[328811057,1717819841093,-1558.36,0.00029863,4]
[328811058,1717819841103,-1558.36,0.00029863,4]
[328811059,1717819841112,-1558.36,0.00029863,4]
[328811060,1717819841124,-500.0,0.00029863,4]
[328811061,1717819841134,-521.07920433,0.00029863,4]
[328811062,1717819841144,-500.0,0.00029863,4]
[328811063,1717819841154,-500.0,0.00029863,4]
[328811064,1717819841163,-500.0,0.00029863,4]
[328811065,1717819841173,-500.0,0.00029863,4]
[328811066,1717819841182,-5000.0,0.00029866,2]
[328811067,1717819841192,-154.77768359,0.00029877,2]
[328811068,1717819841201,-150.0,0.00029883,2]
[328811069,1717819841211,-3287.94205355,0.00029898,2]
[328811070,1717819841221,-30125.5915284,0.000299,2]
[328811071,1717819841231,-3000.0,0.000299,2]
[328811072,1717819841240,-4139.5224,0.000299,2]
[328811073,1717819841250,-633.7729566,0.000299,2]
[328811074,1717819841260,-167.67165516,0.000299,2]
[328811075,1717819841270,-187.64677854,0.000299,2]
[328811076,1717819841280,-162.45278744,0.000299,15]
[328811077,1717819841290,-500.0,0.000299,2]
[328811078,1717819841300,-500.0,0.000299,2]
[328811079,1717819841310,-500.0,0.000299,2]
[328811080,1717819841320,-500.0,0.000299,2]
[328811081,1717819841329,-500.0,0.000299,2]
[328811082,1717819841339,-500.0,0.000299,2]
[328811083,1717819841349,-500.0,0.000299,2]
[328811084,1717819841358,-500.0,0.000299,2]
[328811085,1717819841368,-500.0,0.000299,2]
[328811086,1717819841377,-500.0,0.000299,2]
[328811087,1717819841387,-500.0,0.000299,2]
[328811088,1717819841396,-500.0,0.000299,2]
[328811089,1717819841406,-500.0,0.000299,2]
[328811090,1717819841416,-500.0,0.000299,2]
[328811091,1717819841426,-500.0,0.000299,2]
[328811092,1717819841435,-500.0,0.000299,2]
[328811093,1717819841445,-500.0,0.000299,2]
[328811094,1717819841455,-500.0,0.000299,2]
[328811095,1717819841464,-500.0,0.000299,2]
[328811096,1717819841474,-500.0,0.000299,2]
[328811097,1717819841484,-500.0,0.000299,2]
[328811098,1717819841494,-500.0,0.000299,2]
[328811099,1717819841504,-500.0,0.000299,2]
[328811100,1717819841514,-500.0,0.000299,2]
[328811101,1717819841524,-500.0,0.000299,2]
[328811102,1717819841534,-500.0,0.000299,2]
[328811103,1717819841544,-500.0,0.000299,2]
[328811104,1717819841554,-500.0,0.000299,2]
[328811105,1717819841564,-500.0,0.000299,2]
[328811106,1717819841574,-500.0,0.000299,2]
[328811107,1717819841585,-500.0,0.000299,2]
[328811108,1717819841594,-500.0,0.000299,2]
[328811109,1717819841604,-500.0,0.000299,2]
[328811110,1717819841614,-500.0,0.000299,2]
[328811111,1717819841625,-500.0,0.000299,2]
[328811112,1717819841634,-500.0,0.000299,2]
[328811113,1717819841643,-500.0,0.000299,2]
[328811114,1717819841653,-500.0,0.000299,2]
[328811115,1717819841663,-500.0,0.000299,2]
[328811116,1717819841677,-500.0,0.000299,2]
[328811117,1717819841687,-500.0,0.000299,2]
[328811118,1717819841697,-500.0,0.000299,2]
[328811119,1717819841707,-500.0,0.000299,2]
[328811120,1717819841716,-500.0,0.000299,2]
[328811121,1717819841726,-500.0,0.000299,2]
[328811122,1717819841736,-500.0,0.000299,2]
[328811123,1717819841747,-500.0,0.000299,2]
[328811124,1717819841757,-500.0,0.000299,2]
[328811125,1717819841767,-500.0,0.000299,2]
[328811126,1717819841776,-500.0,0.000299,2]
[328811127,1717819841786,-500.0,0.000299,2]
[328811128,1717819841795,-500.0,0.000299,2]
[328811129,1717819841805,-191.81988268,0.000299,2]
[328811130,1717819841814,-500.0,0.000299,2]
[328811131,1717819841824,-500.0,0.000299,2]
[328811132,1717819841833,-500.0,0.000299,2]
[328811133,1717819841843,-500.0,0.000299,2]
[328811134,1717819841853,-500.0,0.000299,2]
[328811135,1717819841863,-500.0,0.000299,2]
[328811136,1717819841874,-500.0,0.000299,2]
[328811137,1717819841883,-500.0,0.000299,2]
[328811138,1717819841893,-500.0,0.000299,2]
[328811139,1717819841903,-500.0,0.000299,2]
[328811140,1717819841913,-500.0,0.000299,2]
[328811141,1717819841922,-500.0,0.000299,2]
[328811142,1717819841932,-500.0,0.000299,2]
[328811143,1717819841942,-500.0,0.000299,2]
[328811144,1717819841952,-500.0,0.000299,2]
[328811145,1717819841961,-500.0,0.000299,2]
[328811146,1717819841971,-500.0,0.000299,2]
[328811147,1717819841980,-500.0,0.000299,2]
[328811148,1717819841990,-500.0,0.000299,2]
[328811149,1717819841999,-500.0,0.000299,2]
[328811150,1717819842009,-500.0,0.000299,2]
[328811151,1717819842018,-500.0,0.000299,2]
[328811152,1717819842027,-500.0,0.000299,2]
[328811153,1717819842037,-500.0,0.000299,2]
[328811154,1717819842047,-500.0,0.000299,2]
[328811156,1717819842056,-500.0,0.000299,2]
[328811157,1717819842065,-500.0,0.000299,2]
[328811159,1717819842074,-500.0,0.000299,2]
[328811160,1717819842084,-500.0,0.000299,2]
[328811161,1717819842093,-500.0,0.000299,2]
[328811162,1717819842103,-500.0,0.000299,2]
[328811163,1717819842113,-500.0,0.000299,2]
[328811164,1717819842123,-500.0,0.000299,2]
[328811165,1717819842132,-500.0,0.000299,2]
[328811166,1717819842141,-500.0,0.000299,2]
[328811167,1717819842151,-500.0,0.000299,2]
[328811169,1717819842160,-500.0,0.000299,2]
[328811171,1717819842169,-500.0,0.000299,2]
[328811173,1717819842178,-500.0,0.000299,2]
[328811174,1717819842187,-500.0,0.000299,2]
[328811176,1717819842197,-500.0,0.000299,2]
[328811177,1717819842206,-500.0,0.000299,2]
[328811178,1717819842215,-500.0,0.000299,2]
[328811179,1717819842224,-500.0,0.000299,2]
[328811180,1717819842234,-500.0,0.000299,2]
[328811181,1717819842243,-500.0,0.000299,2]
[328811182,1717819842252,-500.0,0.000299,2]
[328811183,1717819842262,-500.0,0.000299,2]
[328811184,1717819842271,-500.0,0.000299,2]
[328811185,1717819842280,-500.0,0.000299,2]
[328811186,1717819842290,-500.0,0.000299,2]
[328811187,1717819842299,-500.0,0.000299,2]
[328811188,1717819842309,-500.0,0.000299,2]
[328811189,1717819842318,-500.0,0.000299,2]
[328811190,1717819842327,-500.0,0.000299,2]
[328811191,1717819842336,-500.0,0.000299,2]
[328811192,1717819842346,-500.0,0.000299,2]
[328811193,1717819842355,-500.0,0.000299,2]
[328811194,1717819842364,-500.0,0.000299,2]
[328811195,1717819842374,-500.0,0.000299,2]
[328811196,1717819842384,-500.0,0.000299,2]
[328811197,1717819842394,-500.0,0.000299,2]
[328811198,1717819842403,-500.0,0.000299,2]
[328811199,1717819842414,-500.0,0.000299,2]
[328811200,1717819842424,-500.0,0.000299,2]
[328811201,1717819842434,-500.0,0.000299,2]
[328811202,1717819842443,-500.0,0.000299,2]
[328811203,1717819842453,-500.0,0.000299,2]
[328811204,1717819842462,-500.0,0.000299,2]
[328811205,1717819842471,-500.0,0.000299,2]
[328811206,1717819842481,-500.0,0.000299,2]
[328811207,1717819842491,-500.0,0.000299,2]
[328811208,1717819842501,-500.0,0.000299,2]
[328811209,1717819842511,-500.0,0.000299,2]
[328811210,1717819842520,-500.0,0.000299,2]
[328811211,1717819842533,-500.0,0.000299,2]
[328811212,1717819842546,-500.0,0.000299,2]
[328811213,1717819842560,-500.0,0.000299,2]
[328811214,1717819842573,-500.0,0.000299,2]
[328811215,1717819842586,-500.0,0.000299,2]
[328811216,1717819842599,-500.0,0.000299,2]
[328811217,1717819842611,-500.0,0.000299,2]
[328811218,1717819842622,-500.0,0.000299,2]
[328811219,1717819842632,-500.0,0.000299,2]
[328811220,1717819842644,-500.0,0.000299,2]
[328811221,1717819842655,-500.0,0.000299,2]
[328811222,1717819842671,-1460.00838093,0.000299,2]
[328811223,1717819842684,-500.0,0.000299,2]
[328811224,1717819842696,-500.0,0.000299,2]
[328811225,1717819842707,-500.0,0.000299,2]
[328811226,1717819842720,-500.0,0.000299,2]
[328811227,1717819842732,-500.0,0.000299,2]
[328811228,1717819842744,-500.0,0.000299,2]
[328811229,1717819842757,-500.0,0.000299,2]
[328811230,1717819842771,-500.0,0.000299,2]
[328811231,1717819842784,-500.0,0.000299,2]
[328811232,1717819842798,-500.0,0.000299,2]
[328811233,1717819842810,-500.0,0.000299,2]
[328811234,1717819842821,-500.0,0.000299,2]
[328811235,1717819842832,-9154.75756698,0.000299,2]
[328811236,1717819842844,-257.26582895,0.000299,2]
[328811237,1717819842855,-150.0,0.00029915,2]
[328811238,1717819842866,-150.0,0.0002992,2]
[328811239,1717819842880,-300.79275145,0.00029929,2]
[328811240,1717819842893,-150.0,0.00029949,2]
[328811241,1717819842906,-156.68327656,0.00029953,2]
[328811242,1717819842917,-150.0,0.00029966,2]
[328811243,1717819842930,-500.0,0.00029978,4]
[328811244,1717819842942,-500.0,0.00029978,2]
[328811245,1717819842952,-1274.7731674,0.00029979,2]
[328811247,1717819842962,-1263.4033921,0.00029979,2]
[328811249,1717819842972,-1252.0336169,0.00029979,2]
[328811250,1717819842984,-1240.6638416,0.00029979,2]
[328811251,1717819842996,-1229.2940663,0.00029979,2]
[328811252,1717819843008,-13939.8708873,0.00029979,2]
[328811253,1717819843019,-13855.8824469,0.00029979,2]
[328811254,1717819843031,-13771.8940065,0.00029979,2]
[328811255,1717819843043,-13687.9055661,0.00029979,2]
[328811256,1717819843055,-13603.9171257,0.00029979,2]
[328811257,1717819843068,-1451.4909,0.00029979,2]
[328811258,1717819843080,-1442.7455926,0.00029979,2]
[328811259,1717819843092,-1434.0002851,0.00029979,2]
[328811260,1717819843105,-1425.2549776,0.00029979,2]
[328811261,1717819843117,-1416.5096702,0.00029979,2]
[328811262,1717819843131,-323.3348289,0.00029979,2]
[328811263,1717819843143,-322.3563529,0.00029979,2]
[328811264,1717819843154,-321.3778769,0.00029979,2]
[328811265,1717819843165,-320.3994008,0.00029979,2]
[328811266,1717819843176,-319.4209248,0.00029979,2]
[328811267,1717819843186,-150.0,0.00029986,2]
[328811268,1717819843198,-30000.0,0.00029988,3]
[328811269,1717819843210,-150.0,0.00029993,2]
[328811270,1717819843222,-97314.79524401,0.00029994,13]
[328811271,1717819843376,-10249.1570022,0.00029994,13]
[328811272,1717819843427,-210707.84066231,0.00029994,13]
[328811273,1717819843485,-327.60783478,0.00024256,2]
[328811274,1717819843496,-1218.39150008,0.00029994,13]
[328811275,1717819843514,-2340.54213192,0.00029994,13]
[328811276,1717819843527,-10977.5575549,0.00029994,13]
[328811277,1717819843547,-579.64643791,0.00029994,13]
[328811280,1717819846327,-430.47069148,0.00013299,2]
[328811281,1717819846337,-555.69629729,0.00029994,13]
[328811344,1717820005661,-217.36110672,0.00013285,2]
[328811345,1717820005684,-327.09381956,0.00013286,2]
[328811346,1717820005707,-3018.12192984,0.00013286,2]
[328811347,1717820005733,-155.0,0.00013286,2]
[328811348,1717820005756,-155.0,0.00013287,2]
[328811349,1717820005779,-307.36968422,0.00013287,2]
[328811350,1717820005801,-166.59300028,0.00013287,2]
[328811351,1717820005824,-209.45168018,0.00013288,2]
[328811352,1717820005847,-444.0087792,0.00013288,2]
[328811353,1717820006265,-420.31638382,0.00013288,2]
[328811354,1717820006287,-537.64011299,0.00013288,2]
[328811355,1717820006309,-525.22812032,0.00013288,2]
[328811356,1717820006331,-217.80745431,0.00013289,2]
[328811357,1717820006353,-155.0,0.0001329,2]
[328811358,1717820006378,-1218.82618451,0.0001329,2]
[328811359,1717820006401,-1925.18174405,0.00013291,2]
[328811360,1717820007462,-444.85714971,0.00013291,2]
[328811361,1717820007484,-1489.78467668,0.00013291,2]
[328811362,1717820007506,-208.14773746,0.00013292,2]
[328811363,1717820007528,-155.78269558,0.00013299,2]
[328811364,1717820007549,-362.72006922,0.00013299,2]
[328811365,1717820009446,291.36101649,0.00013285,2]
[328811366,1717820047429,2047.34665486,0.00013285,2]
[328811367,1717820047453,5000.0,0.00013285,2]
[328811368,1717820047476,5000.0,0.00013285,2]
[328811369,1717820059855,-3869.01965446,0.00013285,2]
[328811370,1717820059878,-1130.98034554,0.00013285,2]
[328811371,1717820059904,-5000.0,0.00013285,2]
[328811372,1717820060326,-5000.0,0.00013285,2]
[328811373,1717820061077,-5000.0,0.00013285,2]
[328811374,1717820076072,-5000.0,0.00013285,2]
[328811375,1717820079502,-5000.0,0.00013285,2]
[328811376,1717820079975,-5000.0,0.00013285,2]
[328811377,1717820107170,-5000.0,0.00013285,2]
[328811378,1717820107817,-5000.0,0.00013285,2]
[328811379,1717820108472,-5000.0,0.00013285,2]
[328811380,1717820109215,-5000.0,0.00013285,2]
[328811381,1717820112056,-5000.0,0.00013285,2]
[328811382,1717820120378,-766.0,0.00013285,2]
[328811383,1717820134824,169.15768973,9.964e-05,2]
[328811384,1717820227270,24657.80907192,9.964e-05,2]
[328811385,1717820243275,24657.80907192,9.964e-05,2]
[328811386,1717820267276,24657.80907192,9.964e-05,2]
[328811387,1717820285436,24657.80907192,9.964e-05,2]
[328811388,1717820309276,12664.62160932,9.964e-05,2]
[328811392,1717820950114,-2875.48948712,0.00013272,2]
[328811393,1717820950135,-3412.61714583,0.00013273,2]
[328811394,1717820954117,-152.18925717,0.00013272,2]
[328811396,1717820979803,-4000.0,0.00013272,2]
[328811397,1717820980597,-138.37015852,0.00013272,2]
[328811398,1717820980619,-3861.62984148,0.00013273,2]
[328811399,1717820981345,-1144.6740393,0.00013273,2]
[328811400,1717820981368,-481.85167187,0.00013273,2]
[328811401,1717820981392,-1000.0,0.00013284,2]
[328811402,1717820981417,-1373.47428883,0.00013285,2]
[328811403,1717820982223,-4000.0,0.00013285,2]
[328811404,1717820982918,-4000.0,0.00013285,2]
[328811405,1717820983593,-4000.0,0.00013285,2]
[328811406,1717820984306,-4000.0,0.00013285,2]
[328811407,1717820984922,-4000.0,0.00013285,2]
[328811408,1717820985565,-4000.0,0.00013285,2]
[328811409,1717820986232,-4000.0,0.00013285,2]
[328811410,1717821006809,-430.47069148,0.00013272,2]
[328811411,1717821006835,-3569.52930852,0.00013285,2]
[328811412,1717821007454,-4000.0,0.00013285,2]
[328811413,1717821008129,-4000.0,0.00013285,2]
[328811414,1717821008839,-4000.0,0.00013285,2]
[328811415,1717821009541,-4000.0,0.00013285,2]
[328811416,1717821021640,-4000.0,0.00013285,2]
[328811417,1717821022335,-4000.0,0.00013285,2]
[328811418,1717821022974,-4000.0,0.00013285,2]
[328811419,1717821023579,-4000.0,0.00013285,2]
[328811420,1717821024222,-4000.0,0.00013285,2]
[328811423,1717821032864,-714.5560402,0.00013285,2]
[328811424,1717821032876,-12048.98120326,0.00013285,2]
[328811425,1717821032886,-6035.958,0.0001726,2]
[328811426,1717821032896,-150.99,0.00019726,2]
[328811427,1717821032905,-9999.99,0.00019726,2]
[328811428,1717821032915,-1598.93,0.00019726,2]
[328811429,1717821032925,-172.23,0.00021547,2]
[328811430,1717821032934,-162.86,0.0002201,2]
[328811431,1717821032944,-500.0,0.00023402,2]
[328811432,1717821032954,-152.46,0.00024384,2]
[328811434,1717821032963,-499.99,0.00024384,2]
[328811436,1717821032973,-19580.62648222,0.00025,2]
[328811438,1717821032982,-1392.53462796,0.00025593,2]
[328811440,1717821032992,-312.01,0.00025594,2]
[328811442,1717821033001,-2751.0,0.00026824,2]
[328811444,1717821033011,-200.0,0.00026836,2]
[328811446,1717821033026,-155.00435959,0.00026922,2]
[328811448,1717821033035,-602.68,0.00026933,2]
[328811450,1717821033045,-250.0,0.00026945,2]
[328811453,1717821033065,-151.58331189,0.00026948,2]
[328811455,1717821033076,-151.58331189,0.00026966,2]
[328811457,1717821033086,-443.13,0.00026998,2]
[328811458,1717821033097,-157.68136385,0.00026998,2]
[328811459,1717821033107,-155.5914595,0.00027048,2]
[328811460,1717821033117,-154.34179763,0.0002713,2]
[328811461,1717821033127,-3284.33,0.00027179,2]
[328811462,1717821033136,-166.66666666,0.0002719,2]
[328811463,1717821033146,-152.93544628,0.00027209,2]
[328811464,1717821033156,-151.58331189,0.00027256,2]
[328811465,1717821033166,-157.89,0.00027277,2]
[328811466,1717821033175,-157.89,0.00027292,2]
[328811467,1717821033184,-157.89,0.00027307,2]
[328811468,1717821033196,-157.89,0.00027322,2]
[328811469,1717821033205,-157.89,0.00027337,2]
[328811470,1717821033215,-157.89,0.00027353,2]
[328811471,1717821033224,-157.89,0.00027368,2]
[328811472,1717821033233,-157.89,0.00027383,2]
[328811473,1717821033243,-1000.0,0.00027383,2]
[328811474,1717821033252,-157.89,0.00027398,2]
[328811475,1717821033261,-152.93544628,0.00027398,2]
[328811476,1717821033272,-2485.09344287,0.000274,2]
[328811477,1717821033281,-735.18,0.00027413,2]
[328811478,1717821033291,-157.89,0.00027413,2]
[328811479,1717821033300,-153.16287005,0.00027426,2]
[328811480,1717821033310,-151.58331189,0.00027437,2]
[328811481,1717821033319,-167.10434245,0.0002744,2]
[328811482,1717821033329,-1743.81,0.00027512,2]
[328811483,1717821033339,-152.93544628,0.00027513,2]
[328811484,1717821033348,-268.51,0.00027561,2]
[328811485,1717821033359,-150.0,0.000276,2]
[328811486,1717821033369,-152.93544628,0.00027636,2]
[328811487,1717821033378,-155.5914595,0.00027655,2]
[328811488,1717821033388,-154.40447151,0.00027726,2]
[328811489,1717821033398,-400.41,0.00027732,2]
[328811490,1717821033408,-151.58331189,0.00027773,2]
[328811492,1717821033417,-312.01,0.00027858,2]
[328811493,1717821033426,-152.93544628,0.00027976,2]
[328811494,1717821033436,-224.79258656,0.00028,2]
[328811495,1717821033447,-155.73782343,0.00028026,2]
[328811496,1717821033457,-151.58331189,0.00028059,2]
[328811497,1717821033467,-157.68136385,0.00028092,2]
[328811498,1717821033476,-200.869,0.00028126,2]
[328811499,1717821033486,-153.16287005,0.00028169,2]
[328811500,1717821033501,-151.58331189,0.00028506,2]
[328811501,1717821033515,-160.378114,0.00028691,2]
[328811502,1717821033529,-65795.07046525,0.00029,3]
[328811503,1717821033542,-154.40447151,0.00029157,2]
[328811504,1717821033555,-3752.4269,0.00029205,2]
[328811505,1717821033568,-155.5914595,0.00029205,2]
[328811506,1717821033581,-155.0043596,0.00029224,2]
[328811507,1717821033593,-154.77768359,0.00029233,2]
[328811508,1717821033604,-152.93544628,0.00029236,2]
[328811509,1717821033614,-157.68136385,0.00029293,2]
[328811510,1717821033626,-151.58331189,0.00029372,2]
[328811511,1717821033638,-154.77768361,0.00029398,2]
[328811512,1717821033650,-155.5914595,0.00029454,2]
[328811513,1717821033662,-227.08369606,0.000295,3]
[328811514,1717821033673,-151.58331189,0.0002965,2]
[328811515,1717821033690,-154.75656004,0.00029672,2]
[328811516,1717821033702,-152.93544628,0.00029687,2]
[328811517,1717821033714,-1245.23880382,0.00029693,4]
[328811518,1717821033726,-897.0,0.000297,2]
[328811519,1717821033739,-354.0,0.000297,2]
[328811520,1717821033751,-155.5914595,0.00029741,2]
[328811521,1717821033763,-500.0,0.00029757,2]
[328811522,1717821033778,-500.0,0.00029759,2]
[328811523,1717821033791,-176.65856179,0.00029779,15]
[328811524,1717821033803,-176.6585617,0.00029792,15]
[328811525,1717821033815,-470.52658047,0.00029794,2]
[328811526,1717821033827,-2157.85,0.00029798,2]
[328811527,1717821033839,-518.393,0.00029798,2]
[328811528,1717821033850,-1304.0,0.00029798,2]
[328811529,1717821033861,-545.713,0.00029798,2]
[328811530,1717821033876,-3510.5234,0.00029799,2]
[328811531,1717821033888,-366.4935,0.00029799,2]
[328811532,1717821033900,-4508.0586,0.000298,2]
[328811533,1717821033913,-1993.8892,0.000298,2]
[328811534,1717821033925,-176.6585617,0.00029806,15]
[328811535,1717821033938,-176.6585617,0.00029819,15]
[328811536,1717821033950,-176.6585617,0.00029833,15]
[328811537,1717821033962,-151.58331189,0.00029844,2]
[328811538,1717821033972,-176.6585617,0.00029846,15]
[328811539,1717821033984,-176.6585617,0.0002986,15]
[328811540,1717821033996,-529.17449675,0.00029863,4]
[328811541,1717821034006,-150.0,0.00029865,2]
[328811542,1717821034019,-176.6585617,0.00029873,15]
[328811543,1717821034030,-176.6585617,0.00029887,15]
[328811544,1717821034040,-10198.8543,0.00029893,2]
[328811545,1717821034052,-2727.7279,0.00029894,2]
[328811546,1717821034064,-500.0,0.00029894,2]
[328811547,1717821034074,-654.5863,0.00029894,2]
[328811548,1717821034086,-163.060808,0.00029898,18]
[328811549,1717821034099,-2935.5799,0.00029899,2]
[328811550,1717821034112,-6817.28787083,0.000299,2]
[328811551,1717821034122,-154.16874673,0.000299,2]
[328811552,1717821034134,-334.0859727,0.000299,2]
[328811553,1717821034145,-176.6585617,0.000299,15]
[328811554,1717821034156,-1457.202731,0.000299,2]
[328811555,1717821034167,-543.32362704,0.000299,2]
[328811556,1717821034179,-604.916589,0.000299,2]
[328811557,1717821034191,-28012.10725857,0.000299,2]
[328811558,1717821034203,-339.04689424,0.000299,2]
[328811559,1717821034215,-184.24328289,0.000299,2]
[328811560,1717821034227,-431.93386255,0.000299,2]
[328811561,1717821034239,-151.58331189,0.0002994,2]
[328811562,1717821034251,-153.16287005,0.00029946,2]
[328811563,1717821034261,-278.0,0.00029962,5]
[328811564,1717821034271,-202.03433713,0.00029962,29]
[328811565,1717821034281,-924.2147726,0.00029979,2]
[328811566,1717821034292,-994.3832796,0.00029979,2]
[328811567,1717821034304,-1064.5517867,0.00029979,2]
[328811568,1717821034315,-1134.7202938,0.00029979,2]
[328811569,1717821034326,-1204.8888008,0.00029979,2]
[328811570,1717821034337,-2495.0115645,0.00029979,2]
[328811571,1717821034349,-2714.1298278,0.00029979,2]
[328811572,1717821034361,-2933.248091,0.00029979,2]
[328811573,1717821034372,-3152.3663543,0.00029979,2]
[328811574,1717821034384,-3371.4846176,0.00029979,2]
[328811575,1717821034395,-13428.5311683,0.00029979,2]
[328811576,1717821034406,-14607.8589396,0.00029979,2]
[328811577,1717821034416,-15787.1867108,0.00029979,2]
[328811578,1717821034427,-16966.514482,0.00029979,2]
[328811579,1717821034439,-18145.8422533,0.00029979,2]
[328811580,1717821034451,-297213.44038674,0.00029988,7]
[328811581,1717821034468,-82982.30087,0.00029988,7]
[328811582,1717821038246,-247.0,0.00029988,5]
[328811583,1717821038258,-1696.83229728,0.00029988,7]
[328811584,1717821038272,-1989.47898931,0.00029988,7]
[328811585,1717821038309,-5192.73664175,0.00029988,7]
[328811586,1717821038434,-902.63081299,0.00029988,7]
[328811587,1717821038450,-1007.35457493,0.00029988,7]
[328811593,1717821041595,-179.52164024,0.00029978,2]
[328811594,1717821041605,-103.95017037,0.00029988,7]
[328811595,1717821042717,-2000.97612,0.00029988,7]
[328811596,1717821042795,-719.26763437,0.00029988,7]
[328811597,1717821042810,-352.75909744,0.00029988,7]
[328811598,1717821042825,-438.78,0.00029988,7]
[328811637,1717821043380,-5930.5990611,0.00029988,7]
[328811653,1717821043630,-349.345084,0.00029988,7]
[328811661,1717821043696,-11933.01277918,0.00029988,7]
[328811669,1717821043764,-1003.40247496,0.00029988,7]
[328811671,1717821043847,-1688.25964379,0.00029988,7]
[328811678,1717821046454,-226.0,0.00029988,5]
[328811679,1717821046464,-1059.276437,0.00029988,7]
[328811680,1717821046661,-6231.59735195,0.00029988,7]
[328811681,1717821046732,-2053.8149341,0.00029988,7]
[328811682,1717821046805,-1917.91422062,0.00029988,7]
[328811683,1717821046816,-34626.15577335,0.00029988,7]
[328811684,1717821046887,-626.08111507,0.00029988,7]
[328811685,1717821046899,-822.8558731,0.00029988,7]
[328811701,1717822045176,-282.86566183,0.00013887,2]
[328811702,1717822045198,-155.61762711,0.00013888,2]
[328811703,1717822045219,-2247.78233082,0.00013989,2]
[328811704,1717822045941,-2000.97612,0.00013989,2]
[328811705,1717822149127,-154.75,0.0001399,2]